[Event "Schack-SM 2024: Mastarklassen-elit"]
[Site "Fortnox Arena, Hejaregatan 5, Vaxjo, Sweden"]
[Date "2024.07.06"]
[Round "8.1"]
[White "Arman, Deniz"]
[Black "Olsson, William"]
[Result "0-1"]
[TimeControl "90 minutes for 40 moves + 30 minutes for the rest of the game + 30 seconds per move from move one."]
[WhiteTitle "FM"]
[BlackTitle "IM"]
[WhiteElo "2343"]
[BlackElo "2363"]

1. e4 {[%clk 01:21:47]} {[%emt 00:09:10]} e5 {[%clk 01:30:53]} {[%emt
00:00:09]} 2. Nf3 {[%clk 01:22:13]} {[%emt 00:00:04]} Nc6 {[%clk 01:31:17]}
{[%emt 00:00:06]} 3. Bb5 {[%clk 01:22:30]} {[%emt 00:00:13]} a6 {[%clk
01:31:34]} {[%emt 00:00:13]} 4. Bxc6 {[%clk 01:22:52]} {[%emt 00:00:09]} dxc6
{[%clk 01:32:02]} {[%emt 00:00:01]} 5. O-O {[%clk 01:23:14]} {[%emt 00:00:08]}
Qf6 {[%clk 01:31:52]} {[%emt 00:00:40]} 6. d4 {[%clk 01:22:46]} {[%emt
00:00:59]} exd4 {[%clk 01:32:15]} {[%emt 00:00:06]} 7. Bg5 {[%clk 01:22:27]}
{[%emt 00:00:49]} Qd6 {[%clk 01:32:38]} {[%emt 00:00:08]} 8. Nxd4 {[%clk
01:17:56]} {[%emt 00:05:01]} Bd7 {[%clk 01:30:39]} {[%emt 00:02:29]} 9. Nc3
{[%clk 01:11:21]} {[%emt 00:07:05]} Ne7 {[%clk 01:23:45]} {[%emt 00:07:24]} 10.
Be3 {[%clk 00:32:35]} {[%emt 00:39:16]} O-O-O {[%clk 01:15:58]} {[%emt
00:08:17]} 11. Qe2 {[%clk 00:32:53]} {[%emt 00:00:10]} Ng6 {[%clk 01:07:01]}
{[%emt 00:09:27]} 12. Rad1 {[%clk 00:31:18]} {[%emt 00:02:05]} Qe7 {[%clk
01:05:22]} {[%emt 00:02:10]} 13. f4 {[%clk 00:27:53]} {[%emt 00:03:54]} f6
{[%clk 01:03:35]} {[%emt 00:02:17]} 14. Nb3 {[%clk 00:26:43]} {[%emt 00:01:41]}
Qe8 {[%clk 00:59:51]} {[%emt 00:04:15]} 15. Bc5 {[%clk 00:21:45]} {[%emt
00:05:27]} Kb8 {[%clk 00:53:22]} {[%emt 00:07:00]} 16. Qe3 {[%clk 00:22:12]}
{[%emt 00:00:04]} Bxc5 {[%clk 00:51:00]} {[%emt 00:02:53]} 17. Nxc5 {[%clk
00:21:30]} {[%emt 00:01:12]} Bc8 {[%clk 00:50:03]} {[%emt 00:01:26]} 18. b4
{[%clk 00:19:33]} {[%emt 00:02:27]} Qe7 {[%clk 00:48:26]} {[%emt 00:02:06]} 19.
a4 {[%clk 00:19:32]} {[%emt 00:00:31]} Rxd1 {[%clk 00:46:52]} {[%emt 00:02:05]}
20. Rxd1 {[%clk 00:19:58]} {[%emt 00:00:04]} Rd8 {[%clk 00:47:14]} {[%emt
00:00:06]} 21. Rb1 {[%clk 00:14:32]} {[%emt 00:05:57]} Qd6 {[%clk 00:41:24]}
{[%emt 00:06:20]} 22. Nd3 {[%clk 00:14:58]} {[%emt 00:00:02]} Qd4 {[%clk
00:41:32]} {[%emt 00:00:23]} 23. Qxd4 {[%clk 00:15:15]} {[%emt 00:00:14]} Rxd4
{[%clk 00:41:55]} {[%emt 00:00:06]} 24. Kf2 {[%clk 00:14:40]} {[%emt 00:01:06]}
f5 {[%clk 00:40:51]} {[%emt 00:01:33]} 25. Ke3 {[%clk 00:11:10]} {[%emt
00:04:00]} Rd8 {[%clk 00:39:44]} {[%emt 00:01:36]} 26. e5 {[%clk 00:09:57]}
{[%emt 00:01:45]} b6 {[%clk 00:39:08]} {[%emt 00:01:06]} 27. Ne2 {[%clk
00:09:59]} {[%emt 00:00:27]} Ne7 {[%clk 00:37:47]} {[%emt 00:01:51]} 28. Nc3
{[%clk 00:10:03]} {[%emt 00:00:26]} Be6 {[%clk 00:36:59]} {[%emt 00:01:17]} 29.
Rd1 {[%clk 00:10:00]} {[%emt 00:00:34]} Kc8 {[%clk 00:36:11]} {[%emt 00:01:18]}
30. Nb2 {[%clk 00:09:44]} {[%emt 00:00:46]} Rg8 {[%clk 00:33:16]} {[%emt
00:03:25]} 31. h4 {[%clk 00:08:24]} {[%emt 00:01:50]} g6 {[%clk 00:33:37]}
{[%emt 00:00:09]} 32. g3 {[%clk 00:05:07]} {[%emt 00:03:46]} h6 {[%clk
00:33:50]} {[%emt 00:00:18]} 33. a5 {[%clk 00:05:21]} {[%emt 00:00:17]} g5
{[%clk 00:29:49]} {[%emt 00:04:31]} 34. fxg5 {[%clk 00:04:23]} {[%emt
00:01:27]} hxg5 {[%clk 00:30:17]} {[%emt 00:00:03]} 35. h5 {[%clk 00:04:49]}
{[%emt 00:00:04]} Rh8 {[%clk 00:25:35]} {[%emt 00:05:11]} 36. axb6 {[%clk
00:05:05]} {[%emt 00:00:15]} cxb6 {[%clk 00:26:02]} {[%emt 00:00:04]} 37. Rd6
{[%clk 00:04:36]} {[%emt 00:00:58]} Rh6 {[%clk 00:25:42]} {[%emt 00:00:49]} 38.
Ne2 {[%clk 00:03:51]} {[%emt 00:01:16]} f4+ {[%clk 00:25:20]} {[%emt 00:00:51]}
39. Kf2 {[%clk 00:04:13]} {[%emt 00:00:08]} fxg3+ {[%clk 00:24:36]} {[%emt
00:01:13]} 40. Nxg3 {[%clk 00:03:01]} {[%emt 00:01:43]} Kc7 {[%clk 00:24:47]}
{[%emt 00:00:18]} 41. c4 {[%clk 00:23:14]} {[%emt 00:10:18]} Kb7 {[%clk
00:49:24]} {[%emt 00:05:53]} 42. Ke3 {[%clk 00:15:52]} {[%emt 00:07:52]} Nc8
{[%clk 00:48:03]} {[%emt 00:01:51]} 43. Rd8 {[%clk 00:13:39]} {[%emt 00:02:44]}
Kc7 {[%clk 00:48:22]} {[%emt 00:00:12]} 44. Rf8 {[%clk 00:13:33]} {[%emt
00:00:34]} Kd7 {[%clk 00:47:34]} {[%emt 00:01:19]} 45. Rf1 {[%clk 00:10:13]}
{[%emt 00:03:50]} Ne7 {[%clk 00:43:06]} {[%emt 00:04:57]} 46. Rd1+ {[%clk
00:05:37]} {[%emt 00:05:06]} Kc7 {[%clk 00:40:46]} {[%emt 00:02:50]} 47. Rd6
{[%clk 00:05:47]} {[%emt 00:00:19]} Ng8 {[%clk 00:41:11]} {[%emt 00:00:05]} 48.
c5 {[%clk 00:03:19]} {[%emt 00:03:00]} bxc5 {[%clk 00:40:36]} {[%emt 00:01:05]}
49. bxc5 {[%clk 00:03:45]} {[%emt 00:00:04]} Bb3 {[%clk 00:40:39]} {[%emt
00:00:28]} 50. Nd3 {[%clk 00:03:43]} {[%emt 00:00:31]} a5 {[%clk 00:40:34]}
{[%emt 00:00:37]} 51. Kd2 {[%clk 00:03:00]} {[%emt 00:01:11]} Rh7 {[%clk
00:38:38]} {[%emt 00:02:25]} 52. Rg6 {[%clk 00:02:55]} {[%emt 00:00:35]} a4
{[%clk 00:34:56]} {[%emt 00:04:13]} 53. Kc3 {[%clk 00:03:15]} {[%emt 00:00:11]}
Ne7 {[%clk 00:34:02]} {[%emt 00:01:24]} 54. Rxg5 {[%clk 00:03:42]} {[%emt
00:00:03]} Nd5+ {[%clk 00:32:55]} {[%emt 00:01:38]} 55. Kb2 {[%clk 00:04:09]}
{[%emt 00:00:04]} Kb8 {[%clk 00:32:28]} {[%emt 00:00:56]} 56. Ka3 {[%clk
00:03:11]} {[%emt 00:01:28]} Ne3 {[%clk 00:27:32]} {[%emt 00:05:26]} 57. Kb2
{[%clk 00:03:35]} {[%emt 00:00:06]} Rb7 {[%clk 00:26:05]} {[%emt 00:01:58]} 58.
Kc3 {[%clk 00:03:12]} {[%emt 00:00:53]} a3 {[%clk 00:22:52]} {[%emt 00:03:43]}
59. Ne4 {[%clk 00:00:39]} {[%emt 00:03:01]} Nd1+ {[%clk 00:23:04]} {[%emt
00:00:19]} 60. Kd2 {[%clk 00:00:38]} {[%emt 00:00:31]} a2 {[%clk 00:23:29]}
{[%emt 00:00:05]} 61. e6 {[%clk 00:00:35]} {[%emt 00:00:34]} a1=Q {[%clk
00:22:31]} {[%emt 00:01:27]} 62. Ne5 {[%clk 00:00:35]} {[%emt 00:00:29]} Qd4+
{[%clk 00:22:07]} {[%emt 00:00:26]} 0-1

[Event "Schack-SM 2024: Mastarklassen-elit"]
[Site "Fortnox Arena, Hejaregatan 5, Vaxjo, Sweden"]
[Date "2024.07.06"]
[Round "8.2"]
[White "Akesson, Ralf"]
[Black "Lundin, Jan"]
[Result "0-1"]
[TimeControl "90 minutes for 40 moves + 30 minutes for the rest of the game + 30 seconds per move from move one."]
[WhiteTitle "GM"]
[BlackTitle "FM"]
[WhiteElo "2360"]
[BlackElo "2246"]

1. Nf3 {[%clk 01:30:48]} {[%emt 00:00:13]} d5 {[%clk 01:30:48]} {[%emt
00:00:12]} 2. d4 {[%clk 01:30:34]} {[%emt 00:00:44]} e6 {[%clk 01:30:59]}
{[%emt 00:00:21]} 3. c4 {[%clk 01:30:55]} {[%emt 00:00:08]} c5 {[%clk
01:31:21]} {[%emt 00:00:08]} 4. cxd5 {[%clk 01:31:11]} {[%emt 00:00:14]} exd5
{[%clk 01:31:44]} {[%emt 00:00:06]} 5. g3 {[%clk 01:31:30]} {[%emt 00:00:12]}
Nc6 {[%clk 01:32:07]} {[%emt 00:00:06]} 6. Bg2 {[%clk 01:31:54]} {[%emt
00:00:06]} Nf6 {[%clk 01:32:29]} {[%emt 00:00:09]} 7. O-O {[%clk 01:32:17]}
{[%emt 00:00:06]} Be7 {[%clk 01:32:51]} {[%emt 00:00:08]} 8. dxc5 {[%clk
01:31:28]} {[%emt 00:01:19]} O-O {[%clk 01:30:14]} {[%emt 00:03:07]} 9. Qc2
{[%clk 01:23:28]} {[%emt 00:08:30]} Be6 {[%clk 01:25:25]} {[%emt 00:05:19]} 10.
Rd1 {[%clk 01:17:53]} {[%emt 00:06:05]} Rc8 {[%clk 01:23:26]} {[%emt 00:02:30]}
11. a3 {[%clk 01:02:55]} {[%emt 00:15:28]} Qa5 {[%clk 01:12:24]} {[%emt
00:11:32]} 12. b4 {[%clk 00:39:39]} {[%emt 00:23:45]} Nxb4 {[%clk 01:11:56]}
{[%emt 00:00:59]} 13. axb4 {[%clk 00:39:57]} {[%emt 00:00:13]} Qxa1 {[%clk
01:12:18]} {[%emt 00:00:08]} 14. Na3 {[%clk 00:39:50]} {[%emt 00:00:36]} a5
{[%clk 00:46:14]} {[%emt 00:26:34]} 15. Bb2 {[%clk 00:39:19]} {[%emt 00:01:01]}
Qa2 {[%clk 00:46:38]} {[%emt 00:00:06]} 16. Ra1 {[%clk 00:39:10]} {[%emt
00:00:38]} Qxa1+ {[%clk 00:47:00]} {[%emt 00:00:09]} 17. Bxa1 {[%clk 00:39:34]}
{[%emt 00:00:06]} axb4 {[%clk 00:47:24]} {[%emt 00:00:06]} 18. Nb1 {[%clk
00:38:33]} {[%emt 00:01:30]} Rxc5 {[%clk 00:46:33]} {[%emt 00:01:22]} 19. Qb2
{[%clk 00:29:51]} {[%emt 00:09:11]} Rfc8 {[%clk 00:46:02]} {[%emt 00:01:01]} 20.
Nbd2 {[%clk 00:29:21]} {[%emt 00:01:00]} Rc1+ {[%clk 00:36:43]} {[%emt
00:09:49]} 21. Bf1 {[%clk 00:24:44]} {[%emt 00:05:08]} R8c2 {[%clk 00:29:35]}
{[%emt 00:07:38]} 22. Qe5 {[%clk 00:19:19]} {[%emt 00:05:54]} Rd1 {[%clk
00:22:57]} {[%emt 00:07:09]} 23. Qb8+ {[%clk 00:08:59]} {[%emt 00:10:50]} Bf8
{[%clk 00:22:40]} {[%emt 00:00:47]} 24. Bxf6 {[%clk 00:08:46]} {[%emt
00:00:43]} gxf6 {[%clk 00:22:46]} {[%emt 00:00:24]} 25. Qf4 {[%clk 00:05:39]}
{[%emt 00:03:37]} Bh3 {[%clk 00:05:34]} {[%emt 00:17:40]} 26. Qxf6 {[%clk
00:04:04]} {[%emt 00:02:06]} h6 {[%clk 00:04:56]} {[%emt 00:01:10]} 27. Ne5
{[%clk 00:02:19]} {[%emt 00:02:14]} Rc7 {[%clk 00:04:58]} {[%emt 00:00:29]} 28.
Nd3 {[%clk 00:01:31]} {[%emt 00:01:17]} b3 {[%clk 00:04:10]} {[%emt 00:01:18]}
29. f3 {[%clk 00:00:46]} {[%emt 00:01:15]} Rc2 {[%clk 00:02:56]} {[%emt
00:01:44]} 30. Ne5 {[%clk 00:00:34]} {[%emt 00:00:42]} Bc5+ {[%clk 00:02:20]}
{[%emt 00:01:06]} 31. Kh1 {[%clk 00:00:42]} {[%emt 00:00:21]} Be6 {[%clk
00:02:32]} {[%emt 00:00:19]} 32. Ng6 {[%clk 00:00:42]} {[%emt 00:00:29]} Kh7
{[%clk 00:01:59]} {[%emt 00:01:03]} 33. Nf4 {[%clk 00:00:35]} {[%emt 00:00:38]}
Bd4 {[%clk 00:00:52]} {[%emt 00:01:37]} 34. Qxd4 {[%clk 00:00:46]} {[%emt
00:00:19]} Rcxd2 {[%clk 00:01:13]} {[%emt 00:00:09]} 35. Qf6 {[%clk 00:00:37]}
{[%emt 00:00:38]} b2 {[%clk 00:00:34]} {[%emt 00:01:09]} 36. Nh5 {[%clk
00:00:32]} {[%emt 00:00:35]} Rxf1+ {[%clk 00:00:39]} {[%emt 00:00:24]} 37. Kg2
{[%clk 00:00:57]} {[%emt 00:00:06]} Rxe2+ {[%clk 00:00:32]} {[%emt 00:00:37]}
38. Kxf1 {[%clk 00:01:21]} {[%emt 00:00:05]} b1=Q+ {[%emt 00:00:21]} 39. Kxe2
{[%clk 00:01:47]} {[%emt 00:00:03]} Qg6 {[%clk 00:00:31]} {[%emt 00:00:42]} 40.
Qe5 {[%clk 00:01:59]} {[%emt 00:00:17]} Qg5 {[%clk 00:00:39]} {[%emt 00:00:23]}
41. Nf6+ {[%clk 00:29:38]} {[%emt 00:02:51]} Kg6 {[%clk 00:30:02]} {[%emt
00:01:07]} 42. Qxg5+ {[%clk 00:30:01]} {[%emt 00:00:06]} Kxg5 {[%clk 00:18:33]}
{[%emt 00:12:00]} 43. Ne8 {[%clk 00:30:07]} {[%emt 00:00:24]} b5 {[%clk
00:16:55]} {[%emt 00:02:08]} 44. Nc7 {[%clk 00:29:24]} {[%emt 00:01:12]} b4
{[%clk 00:17:04]} {[%emt 00:00:22]} 45. Kd3 {[%clk 00:25:46]} {[%emt 00:04:07]}
Kf5 {[%clk 00:12:50]} {[%emt 00:04:45]} 46. Kd4 {[%clk 00:19:07]} {[%emt
00:07:09]} b3 {[%clk 00:08:18]} {[%emt 00:05:02]} 47. Nb5 {[%clk 00:18:15]}
{[%emt 00:01:22]} b2 {[%clk 00:08:07]} {[%emt 00:00:41]} 48. Na3 {[%clk
00:18:35]} {[%emt 00:00:10]} Kf6 {[%clk 00:06:53]} {[%emt 00:01:43]} 49. Kc3
{[%clk 00:07:55]} {[%emt 00:11:10]} Ke5 {[%clk 00:06:59]} {[%emt 00:00:25]} 50.
Kxb2 {[%clk 00:08:10]} {[%emt 00:00:15]} Kd4 {[%clk 00:07:19]} {[%emt
00:00:09]} 51. Nc2+ {[%clk 00:07:48]} {[%emt 00:00:52]} Kd3 {[%clk 00:07:23]}
{[%emt 00:00:26]} 52. f4 {[%clk 00:07:15]} {[%emt 00:01:04]} d4 {[%clk
00:04:20]} {[%emt 00:03:33]} 53. Kc1 {[%clk 00:07:12]} {[%emt 00:00:33]} Bb3
{[%clk 00:04:10]} {[%emt 00:00:40]} 54. Na3 {[%clk 00:06:56]} {[%emt 00:00:46]}
Ba4 {[%clk 00:02:14]} {[%emt 00:02:26]} 55. Nb1 {[%clk 00:07:13]} {[%emt
00:00:13]} Ke3 {[%clk 00:02:20]} {[%emt 00:00:24]} 56. Nd2 {[%clk 00:07:35]}
{[%emt 00:00:08]} Ke2 {[%clk 00:02:14]} {[%emt 00:00:35]} 57. f5 {[%clk
00:02:21]} {[%emt 00:05:45]} h5 {[%clk 00:02:13]} {[%emt 00:00:31]} 58. f6
{[%clk 00:02:40]} {[%emt 00:00:12]} Bc6 {[%clk 00:01:13]} {[%emt 00:01:31]} 59.
Kc2 {[%clk 00:02:38]} {[%emt 00:00:31]} Bd5 {[%clk 00:01:28]} {[%emt 00:00:15]}
60. Kc1 {[%clk 00:03:02]} {[%emt 00:00:05]} d3 {[%clk 00:01:36]} {[%emt
00:00:23]} 61. Nb1 {[%clk 00:03:24]} {[%emt 00:00:08]} Ke1 {[%clk 00:01:44]}
{[%emt 00:00:22]} 62. Nd2 {[%clk 00:03:47]} {[%emt 00:00:08]} Kf2 {[%clk
00:01:36]} {[%emt 00:00:38]} 63. Kd1 {[%clk 00:03:48]} {[%emt 00:00:28]} Bf3+
{[%clk 00:01:12]} {[%emt 00:00:54]} 64. Kc1 {[%clk 00:03:43]} {[%emt 00:00:36]}
Kg2 {[%clk 00:01:26]} {[%emt 00:00:17]} 65. Nc4 {[%clk 00:03:31]} {[%emt
00:00:41]} Kxh2 {[%clk 00:01:37]} {[%emt 00:00:19]} 66. Nd6 {[%clk 00:02:49]}
{[%emt 00:01:12]} Bd5 {[%clk 00:01:50]} {[%emt 00:00:17]} 67. Nf5 {[%clk
00:03:03]} {[%emt 00:00:16]} Be6 {[%clk 00:01:26]} {[%emt 00:00:53]} 68. Nd4
{[%clk 00:02:03]} {[%emt 00:01:31]} Bd7 {[%clk 00:01:21]} {[%emt 00:00:34]} 69.
Kd2 {[%clk 00:01:51]} {[%emt 00:00:43]} Kxg3 {[%clk 00:01:38]} {[%emt
00:00:11]} 70. Kxd3 {[%clk 00:02:15]} {[%emt 00:00:07]} Bg4 {[%clk 00:01:16]}
{[%emt 00:00:52]} 71. Ke3 {[%clk 00:00:36]} {[%emt 00:02:09]} h4 {[%clk
00:01:14]} {[%emt 00:00:33]} 0-1